bitfinex/quotes_SOLUSD_20250611
["timestamp","ask_amount","ask_price","bid_price","bid_amount"]
[1749605124629,26.0,163.58,163.57,11.83569083]
[1749605124836,31.68,163.6,163.57,11.83569083]
[1749605125237,31.68,163.6,163.59,11.83569083]
[1749605126851,31.68,163.6,163.56,20.35771043]
[1749605127160,31.68,163.6,163.59,11.83569083]
[1749605127960,31.68,163.6,163.56,1.5659]
[1749605128139,11.83569083,163.58,163.53,18.64964886]
[1749605128343,26.0,163.57,163.53,30.48533969]
[1749605129366,37.83569083,163.57,163.52,11.83569083]
[1749605129531,37.83569083,163.57,163.52,30.48533969]
[1749605129958,11.83569083,163.55,163.51,13.40159083]
[1749605130340,11.83569083,163.56,163.51,13.40159083]
[1749605131332,11.83569083,163.56,163.51,11.83569083]
[1749605133160,37.83569083,163.57,163.53,11.83569083]
[1749605133465,37.83569083,163.57,163.52,11.83569083]
[1749605133634,37.83569083,163.57,163.48,18.64964886]
[1749605133838,37.83569083,163.57,163.52,11.83569083]
[1749605135759,26.0,163.57,163.52,11.83569083]
[1749605135956,37.83569083,163.57,163.52,11.83569083]
[1749605136156,26.0,163.57,163.52,11.83569083]
[1749605136534,26.0,163.57,163.55,11.83569083]
[1749605136758,26.0,163.57,163.54,11.83569083]
[1749605140757,17.51569083,163.6,163.55,11.83569083]
[1749605140958,5.68,163.6,163.56,11.83569083]
[1749605141671,26.0,163.61,163.53,110.20984886]
[1749605141672,26.0,163.61,163.57,11.83569083]
[1749605142149,26.0,163.61,163.58,11.83569083]
[1749605142356,26.0,163.61,163.6,11.83569083]
[1749605142652,5.68,163.62,163.6,11.83569083]
[1749605142853,5.68,163.62,163.61,11.83569083]
[1749605143349,17.51569083,163.65,163.61,11.83569083]
[1749605143745,5.68,163.65,163.61,11.83569083]
[1749605143947,5.68,163.65,163.56,18.64964886]
[1749605143948,17.51569083,163.65,163.6,11.83569083]
[1749605144561,5.68,163.65,163.6,11.83569083]
[1749605144775,26.0,163.61,163.56,18.64964886]
[1749605144943,11.83569083,163.58,163.54,11.83569083]
[1749605145366,11.83569083,163.59,163.53,1.6602]
[1749605145554,11.83569083,163.59,163.54,11.83569083]
[1749605146845,11.83569083,163.59,163.55,11.83569083]
[1749605147458,26.0,163.6,163.53,1.6602]
[1749605147669,11.83569083,163.59,163.53,1.6602]
[1749605147850,11.83569083,163.59,163.54,11.83569083]
[1749605149171,11.83569083,163.58,163.54,11.83569083]
[1749605150773,26.0,163.6,163.54,11.83569083]
[1749605150971,11.83569083,163.56,163.51,108.54964886]
[1749605151173,11.83569083,163.55,163.51,18.64964886]
[1749605151743,31.68,163.57,163.51,18.64964886]
[1749605151944,31.68,163.57,163.52,11.83569083]
[1749605152143,43.51569083,163.57,163.52,11.83569083]
[1749605152348,43.51569083,163.57,163.53,11.83569083]
[1749605152650,31.68,163.57,163.55,11.83569083]
[1749605152853,5.68,163.57,163.56,11.83569083]
[1749605158179,5.68,163.57,163.54,0.14216157]
[1749605158388,5.68,163.57,163.56,11.83569083]
[1749605160679,5.68,163.57,163.54,0.14216157]
[1749605160979,5.68,163.57,163.54,11.83569083]
[1749605161492,5.68,163.57,163.56,11.9778524]
[1749605161669,5.68,163.57,163.56,11.83569083]
[1749605162589,26.0,163.63,163.56,11.83569083]
[1749605162892,7.9593,163.71,163.63,18.64964886]
[1749605163104,20.66923248,163.73,163.68,11.83569083]
[1749605163388,26.0,163.69,163.67,11.83569083]
[1749605163567,26.0,163.69,163.66,11.83569083]
[1749605164184,26.0,163.69,163.67,11.83569083]
[1749605164985,11.83569083,163.72,163.67,11.83569083]
[1749605165196,5.66,163.73,163.67,11.83569083]
[1749605165493,26.0,163.69,163.67,11.83569083]
[1749605166292,11.83569083,163.68,163.62,25.48]
[1749605166601,11.83569083,163.67,163.62,11.83569083]
[1749605166785,11.83569083,163.67,163.63,11.83569083]
[1749605167171,37.83569083,163.67,163.62,11.83569083]
[1749605167376,11.83569083,163.66,163.62,11.83569083]
[1749605167589,37.83569083,163.67,163.62,11.83569083]
[1749605169613,11.83569083,163.63,163.58,11.83569083]
[1749605169779,11.83569083,163.62,163.57,11.83569083]
[1749605170196,11.83569083,163.61,163.53,1.5071]
[1749605170501,11.83569083,163.61,163.56,11.83569083]
[1749605171006,5.66,163.63,163.56,11.83569083]
[1749605171201,11.83569083,163.61,163.56,11.83569083]
[1749605171898,5.66,163.63,163.56,11.83569083]
[1749605172095,11.83569083,163.61,163.56,11.83569083]
[1749605173889,11.83569083,163.6,163.55,11.83569083]
[1749605174088,11.83569083,163.6,163.54,18.64964886]
[1749605174298,11.83569083,163.6,163.55,11.83569083]
[1749605175506,11.83569083,163.6,163.56,11.83569083]
[1749605175689,5.66,163.63,163.56,11.83569083]
[1749605175885,11.83569083,163.6,163.56,11.83569083]
[1749605176304,5.66,163.63,163.56,11.83569083]
[1749605176608,11.83569083,163.6,163.56,11.83569083]
[1749605176801,37.83569083,163.6,163.56,11.83569083]
[1749605176999,26.0,163.6,163.58,11.83569083]
[1749605177307,5.66,163.63,163.59,11.83569083]
[1749605177489,5.66,163.63,163.58,18.79181043]
[1749605177808,11.83569083,163.59,163.54,18.64964886]
[1749605178002,11.83569083,163.59,163.55,11.83569083]
[1749605178686,11.83569083,163.59,163.54,30.48533969]
[1749605181417,37.83569083,163.6,163.55,11.83569083]
[1749605181715,37.83569083,163.6,163.56,11.83569083]
[1749605181904,37.83569083,163.6,163.54,18.64964886]
[1749605182104,37.83569083,163.6,163.56,11.83569083]
[1749605182493,26.0,163.6,163.57,11.83569083]
[1749605182809,26.0,163.59,163.57,11.83569083]
[1749605183009,5.66,163.63,163.58,11.83569083]
[1749605183185,26.0,163.6,163.58,11.83569083]
[1749605183789,17.49569083,163.63,163.56,25.48]
[1749605183997,11.83569083,163.6,163.56,25.48]
[1749605184304,11.83569083,163.6,163.55,89.9]
[1749605184305,11.83569083,163.59,163.55,89.9]
[1749605184492,11.83569083,163.59,163.54,120.38533969]
[1749605185183,37.83569083,163.6,163.55,11.83569083]
[1749605185810,37.83569083,163.6,163.54,18.64964886]
[1749605185998,11.83569083,163.59,163.54,18.64964886]
[1749605186808,11.83569083,163.59,163.54,30.48533969]
[1749605187198,37.83569083,163.6,163.55,11.83569083]
[1749605188284,11.83569083,163.62,163.57,11.83569083]
[1749605191336,11.83569083,163.61,163.56,11.83569083]
[1749605192594,11.83569083,163.59,163.54,18.64964886]
[1749605192795,11.83569083,163.59,163.54,30.48533969]
[1749605192992,11.83569083,163.6,163.55,11.83569083]
[1749605195619,11.83569083,163.6,163.54,18.64964886]
[1749605195795,11.83569083,163.6,163.55,11.83569083]
[1749605196420,17.49569083,163.61,163.56,11.83569083]
[1749605196822,5.66,163.61,163.57,11.83569083]
[1749605196999,5.66,163.61,163.55,0.14216157]
[1749605197320,5.66,163.61,163.58,11.83569083]
[1749605197816,5.66,163.61,163.55,90.04216157]
[1749605198118,5.66,163.61,163.58,11.83569083]
[1749605199413,5.66,163.61,163.57,11.83569083]
[1749605199622,17.49569083,163.61,163.56,11.83569083]
[1749605200205,11.83569083,163.6,163.55,120.38533969]
[1749605200932,11.83569083,163.59,163.55,89.9]
[1749605201226,11.83569083,163.58,163.55,89.9]
[1749605201522,26.0,163.6,163.51,30.48533969]
[1749605201824,26.0,163.6,163.55,11.83569083]
[1749605202127,11.83569083,163.59,163.54,11.83569083]
[1749605203505,26.0,163.6,163.55,11.83569083]
[1749605203695,25.49589083,163.61,163.56,11.83569083]
[1749605203896,11.83569083,163.6,163.53,18.64964886]
[1749605204202,11.83569083,163.6,163.55,11.83569083]
[1749605204422,13.6602,163.61,163.51,18.79181043]
[1749605204620,11.83569083,163.59,163.54,11.83569083]
[1749605206208,11.83569083,163.59,163.53,11.83569083]
[1749605207224,11.83569083,163.58,163.53,11.83569083]
[1749605212130,11.83569083,163.58,163.54,11.83569083]
[1749605212631,11.83569083,163.59,163.55,18.64964886]
[1749605212821,13.6602,163.61,163.55,18.64964886]
[1749605213007,11.83569083,163.59,163.55,18.64964886]
[1749605213736,11.83569083,163.59,163.54,101.73569083]
[1749605214038,11.83569083,163.57,163.54,89.9]
[1749605214910,11.83569083,163.56,163.54,89.9]
[1749605216911,11.83569083,163.55,163.51,26.0]
[1749605218171,11.83569083,163.55,163.51,18.64964886]
[1749605218323,11.83569083,163.56,163.51,30.48533969]
[1749605218522,11.83569083,163.6,163.51,30.48533969]
[1749605218725,11.83569083,163.56,163.51,30.48533969]
[1749605221238,11.83569083,163.52,163.47,18.64964886]
[1749605221535,11.83569083,163.51,163.47,108.54964886]
[1749605221741,11.83569083,163.52,163.47,11.83569083]
[1749605221917,4.54862331,163.59,163.5,11.83569083]
[1749605222124,26.0,163.59,163.51,11.83569083]
[1749605222319,11.83569083,163.59,163.51,89.9]
[1749605222625,11.83569083,163.53,163.49,18.64964886]
[1749605222848,11.83569083,163.52,163.48,89.9]
[1749605223017,11.83569083,163.51,163.46,55.94533969]
[1749605223218,11.83569083,163.52,163.47,11.83569083]
[1749605224717,11.83569083,163.51,163.46,120.38533969]
[1749605226717,26.0,163.55,163.46,120.38533969]
[1749605226926,11.83569083,163.51,163.46,120.38533969]
[1749605228440,11.83569083,163.5,163.45,8.7561461]
[1749605228640,11.83569083,163.46,163.45,7.1400461]
[1749605229444,49.81354323,163.46,163.45,7.1400461]
[1749605229650,0.14216157,163.45,163.44,2.49693469]
[1749605229946,23.81354323,163.45,163.44,2.49693469]
[1749605230534,26.0,163.42,163.39,7.34033283]
[1749605230740,11.83569083,163.4,163.39,7.34033283]
[1749605233319,11.9778524,163.4,163.39,7.34033283]
[1749605233517,18.5072524,163.4,163.39,7.34033283]
[1749605234143,38.81270126,163.4,163.39,7.34033283]
[1749605234533,6.5294,163.4,163.39,7.34033283]
[1749605234841,18.36509083,163.4,163.39,7.34033283]
[1749605235758,18.64964886,163.45,163.39,7.34033283]
[1749605235759,5.66,163.42,163.39,7.34033283]
[1749605235929,1.6558,163.48,163.41,11.83569083]
[1749605236133,17.49569083,163.47,163.42,11.83569083]
[1749605236338,11.83569083,163.46,163.41,11.83569083]
[1749605236544,5.66,163.47,163.43,11.83569083]
[1749605237221,9.31495513,163.54,163.46,11.83569083]
[1749605237426,11.83569083,163.52,163.45,18.64964886]
[1749605237728,11.83569083,163.5,163.45,18.64964886]
[1749605237929,11.83569083,163.5,163.45,30.48533969]
[1749605238130,11.83569083,163.49,163.44,11.83569083]
[1749605239451,19.73841504,163.49,163.44,19.73841504]
[1749605241760,26.0,163.5,163.48,19.73841504]
[1749605241942,5.66,163.53,163.49,19.73841504]
[1749605242143,5.66,163.53,163.5,19.73841504]
[1749605242342,5.66,163.53,163.49,19.73841504]
[1749605243426,5.66,163.53,163.5,19.73841504]
[1749605243632,5.66,163.53,163.47,26.0]
[1749605243633,5.66,163.53,163.52,19.73841504]
[1749605243830,25.39841504,163.59,163.52,39.9493639]
[1749605244072,5.66,163.59,163.56,19.73841504]
[1749605245968,5.66,163.59,163.53,18.64964886]
[1749605246139,5.66,163.59,163.55,19.73841504]
[1749605246737,5.66,163.59,163.57,19.73841504]
[1749605247064,5.66,163.59,163.53,18.64964886]
[1749605247065,5.66,163.59,163.58,19.73841504]
[1749605247743,5.66,163.59,163.54,0.14216157]
[1749605247959,5.66,163.59,163.58,19.73841504]
[1749605250265,5.66,163.59,163.58,38.3880639]
[1749605250482,6.1516,163.67,163.59,18.64964886]
[1749605250645,5.66,163.66,163.63,19.73841504]
[1749605250833,19.73841504,163.66,163.62,19.73841504]
[1749605251262,5.66,163.67,163.62,19.73841504]
[1749605251455,19.73841504,163.66,163.62,19.73841504]
[1749605251635,25.39841504,163.67,163.63,19.73841504]
[1749605251839,25.39841504,163.67,163.62,19.73841504]
[1749605252038,5.66,163.67,163.65,19.73841504]
[1749605252256,5.66,163.67,163.63,44.64964886]
[1749605252473,5.66,163.67,163.66,19.73841504]
[1749605253177,25.39841504,163.73,163.67,18.64964886]
[1749605253369,25.39841504,163.73,163.68,19.73841504]
[1749605253869,19.73841504,163.72,163.67,19.73841504]
[1749605255560,5.66,163.73,163.69,19.73841504]
[1749605257944,25.39841504,163.73,163.68,19.73841504]
[1749605258448,25.39841504,163.73,163.67,18.64964886]
[1749605258449,25.39841504,163.73,163.69,19.73841504]
[1749605258671,5.66,163.73,163.7,19.73841504]
[1749605259974,5.66,163.73,163.69,19.73841504]
[1749605261069,19.73841504,163.7,163.62,18.64964886]
[1749605261273,19.73841504,163.69,163.65,19.73841504]
[1749605261479,19.73841504,163.7,163.66,19.73841504]
[1749605261655,19.73841504,163.7,163.64,18.64964886]
[1749605261973,19.73841504,163.7,163.66,19.73841504]
[1749605262162,19.73841504,163.72,163.67,19.73841504]
[1749605262571,25.39841504,163.73,163.69,19.73841504]
[1749605262758,5.66,163.73,163.7,19.73841504]
[1749605263150,5.66,163.73,163.69,19.73841504]
[1749605264349,19.73841504,163.7,163.64,108.54964886]
[1749605264560,19.73841504,163.68,163.61,18.64964886]
[1749605264760,19.73841504,163.65,163.56,7.5991]
[1749605265066,6.3402,163.69,163.59,19.73841504]
[1749605265067,19.73841504,163.64,163.59,19.73841504]
[1749605265461,5.66,163.73,163.63,19.73841504]
[1749605265655,12.0002,163.73,163.67,19.73841504]
[1749605265858,19.73841504,163.72,163.67,19.73841504]
[1749605266279,31.73861504,163.73,163.68,19.73841504]
[1749605266463,12.0002,163.73,163.68,19.73841504]
[1749605266666,5.66,163.73,163.68,19.73841504]
[1749605266981,25.39841504,163.73,163.68,19.73841504]
[1749605267359,5.66,163.73,163.69,19.73841504]
[1749605267702,25.39841504,163.73,163.68,19.73841504]
[1749605268351,19.73841504,163.72,163.68,19.73841504]
[1749605268760,25.39841504,163.73,163.68,19.73841504]
[1749605269061,19.73841504,163.72,163.67,19.73841504]
[1749605269583,25.39841504,163.73,163.68,19.73841504]
[1749605271690,5.66,163.73,163.71,19.73841504]
[1749605271874,5.66,163.74,163.71,19.73841504]
[1749605272682,5.66,163.74,163.66,44.64964886]
[1749605272866,5.66,163.74,163.68,19.73841504]
[1749605273069,5.66,163.74,163.7,19.73841504]
[1749605273594,25.39841504,163.74,163.69,19.73841504]
[1749605273888,19.73841504,163.73,163.67,26.0]
[1749605274096,5.66,163.74,163.66,45.73841504]
[1749605274269,19.73841504,163.69,163.64,21.30601504]
[1749605274459,18.79181043,163.73,163.63,19.73841504]
[1749605274659,19.73841504,163.69,163.64,19.73841504]
[1749605275693,19.73841504,163.68,163.63,19.73841504]
[1749605275985,19.73841504,163.67,163.62,19.73841504]
[1749605276291,19.73841504,163.67,163.62,45.73841504]
[1749605278062,6.5089,163.7,163.62,45.73841504]
[1749605278267,19.73841504,163.68,163.63,19.73841504]
[1749605279263,19.73841504,163.68,163.62,26.0]
[1749605279467,19.73841504,163.64,163.59,21.25621504]
[1749605279682,19.73841504,163.64,163.59,111.15621504]
[1749605279874,25.37841504,163.64,163.59,111.15621504]
[1749605280760,19.73841504,163.62,163.59,89.9]
[1749605280958,19.73841504,163.62,163.57,128.2880639]
[1749605281164,19.73841504,163.63,163.57,108.54964886]
[1749605281387,5.64,163.64,163.57,109.63841504]
[1749605281700,19.73841504,163.62,163.57,109.63841504]
[1749605281995,25.37841504,163.64,163.59,19.73841504]
[1749605282206,5.64,163.64,163.61,19.73841504]
[1749605282374,5.64,163.64,163.63,19.73841504]
[1749605282570,5.64,163.64,163.62,19.73841504]
[1749605282768,5.64,163.64,163.61,19.73841504]
[1749605283376,5.64,163.64,163.59,26.0]
[1749605283377,5.64,163.64,163.6,19.73841504]
[1749605285212,19.73841504,163.62,163.58,19.73841504]
[1749605285374,5.64,163.64,163.58,26.0]
[1749605285570,19.73841504,163.62,163.58,45.73841504]
[1749605285773,19.73841504,163.62,163.55,20.17614886]
[1749605285987,19.73841504,163.63,163.58,19.73841504]
[1749605286685,25.37841504,163.64,163.59,19.73841504]
[1749605286887,19.73841504,163.64,163.59,19.73841504]
[1749605287085,19.73841504,163.64,163.57,18.64964886]
[1749605287086,5.64,163.64,163.6,19.73841504]
[1749605287284,5.64,163.64,163.62,19.73841504]
[1749605287671,5.64,163.64,163.61,19.73841504]
[1749605288103,5.64,163.64,163.6,19.73841504]
[1749605288273,25.37841504,163.64,163.59,19.73841504]
[1749605288477,5.64,163.64,163.6,19.73841504]
[1749605289824,19.73841504,163.62,163.57,108.54964886]
[1749605290009,19.73841504,163.62,163.58,19.73841504]
[1749605290198,19.73841504,163.63,163.58,19.73841504]
[1749605290609,25.37841504,163.64,163.59,19.73841504]
[1749605291393,5.64,163.64,163.63,19.73841504]
[1749605293521,5.64,163.64,163.61,18.64964886]
[1749605293719,5.64,163.64,163.61,19.73841504]
[1749605297226,5.64,163.64,163.59,18.64964886]
[1749605297407,5.64,163.64,163.58,108.54964886]
[1749605297408,5.64,163.64,163.61,19.73841504]
[1749605297737,5.64,163.64,163.63,19.73841504]
[1749605297911,5.64,163.64,163.63,38.3880639]
[1749605299201,25.39841504,163.7,163.63,38.3880639]
[1749605299416,25.39841504,163.7,163.65,19.73841504]
[1749605299618,5.66,163.7,163.67,19.73841504]
[1749605299831,5.66,163.7,163.69,19.73841504]
[1749605300033,5.66,163.75,163.69,19.73841504]
[1749605300236,19.73841504,163.74,163.69,19.73841504]
[1749605301333,25.39841504,163.75,163.7,19.73841504]
[1749605302348,5.66,163.75,163.71,19.73841504]
[1749605304936,5.66,163.75,163.67,108.54964886]
[1749605304937,5.66,163.75,163.74,19.73841504]
[1749605305111,5.66,163.75,163.74,38.53022547]
[1749605305634,5.64,163.82,163.75,18.64964886]
[1749605305812,5.64,163.82,163.78,19.73841504]
[1749605306435,5.64,163.82,163.75,18.64964886]
[1749605306436,5.64,163.82,163.79,19.73841504]
[1749605306815,5.64,163.82,163.75,44.64964886]
[1749605306816,5.64,163.82,163.8,19.73841504]
[1749605307115,5.64,163.82,163.81,19.73841504]
[1749605309823,5.64,163.82,163.78,18.64964886]
[1749605310145,5.64,163.82,163.81,19.73841504]
[1749605311733,5.64,163.82,163.81,38.3880639]
[1749605311917,5.64,163.9,163.81,38.53022547]
[1749605312119,5.64,163.9,163.86,19.73841504]
[1749605312626,25.37841504,163.9,163.86,19.73841504]
[1749605312825,25.37841504,163.9,163.85,19.73841504]
[1749605313044,19.73841504,163.89,163.84,19.73841504]
[1749605313342,19.73841504,163.89,163.83,26.0]
[1749605314145,25.37841504,163.9,163.85,19.73841504]
[1749605315337,19.73841504,163.89,163.85,19.73841504]
[1749605315836,19.73841504,163.89,163.84,19.73841504]
[1749605316036,19.73841504,163.87,163.83,19.73841504]
[1749605316411,5.64,163.9,163.83,19.73841504]
[1749605316642,19.73841504,163.89,163.84,19.73841504]
[1749605316842,25.37841504,163.9,163.85,19.73841504]
[1749605317522,5.64,163.9,163.86,19.73841504]
[1749605317723,5.64,163.9,163.89,19.73841504]
[1749605318431,5.64,163.9,163.88,19.73841504]
[1749605319340,5.64,163.9,163.87,19.73841504]
[1749605320662,5.64,163.9,163.85,18.64964886]
[1749605320939,5.64,163.9,163.82,20.16094886]
[1749605321243,5.64,163.9,163.81,19.73841504]
[1749605321244,19.73841504,163.86,163.81,19.73841504]
[1749605321541,5.64,163.9,163.82,19.73841504]
[1749605321737,19.73841504,163.86,163.82,19.73841504]
[1749605322127,19.73841504,163.87,163.82,19.73841504]
[1749605323442,5.64,163.9,163.82,19.73841504]
[1749605323443,19.73841504,163.86,163.82,19.73841504]
[1749605323622,19.73841504,163.88,163.83,19.73841504]
[1749605323819,19.73841504,163.89,163.84,19.73841504]
[1749605324125,5.64,163.9,163.88,19.73841504]
[1749605324634,5.64,163.9,163.87,19.73841504]
[1749605325823,5.64,163.9,163.86,19.73841504]
[1749605326044,25.37841504,163.9,163.86,19.73841504]
[1749605326522,5.64,163.9,163.86,19.73841504]
[1749605327917,5.64,163.9,163.87,19.73841504]
[1749605328122,32.0885,163.95,163.88,19.73841504]
[1749605328123,19.73841504,163.93,163.88,19.73841504]
[1749605328936,19.73841504,163.92,163.88,19.73841504]
[1749605329143,19.73841504,163.91,163.86,38.3880639]
[1749605330726,5.64,163.94,163.86,38.3880639]
[1749605330926,19.73841504,163.92,163.87,19.73841504]
[1749605331247,19.73841504,163.91,163.87,19.73841504]
[1749605331952,5.64,163.94,163.87,19.73841504]
[1749605332252,19.73841504,163.91,163.87,19.73841504]
[1749605332548,5.64,163.94,163.87,19.73841504]
[1749605332744,19.73841504,163.91,163.87,19.73841504]
[1749605332947,19.73841504,163.91,163.86,38.3880639]
[1749605333547,19.73841504,163.91,163.86,18.64964886]
[1749605333754,19.73841504,163.91,163.86,38.3880639]
[1749605334642,5.64,163.94,163.85,19.73841504]
[1749605334643,19.73841504,163.89,163.85,19.73841504]
[1749605334840,19.73841504,163.88,163.83,19.73841504]
[1749605335054,19.73841504,163.88,163.83,45.73841504]
[1749605336660,25.37841504,163.89,163.84,19.73841504]
[1749605336867,25.37841504,163.89,163.83,26.0]
[1749605337039,25.37841504,163.89,163.84,19.73841504]
[1749605340160,19.73841504,163.88,163.83,45.73841504]
[1749605340558,5.64,163.89,163.83,45.73841504]
[1749605340559,19.73841504,163.87,163.83,45.73841504]
[1749605340774,19.73841504,163.86,163.81,19.73841504]
[1749605340953,19.73841504,163.85,163.81,18.64964886]
[1749605341260,19.73841504,163.85,163.81,11.79054348]
[1749605341261,11.79054348,163.85,163.81,11.79054348]
[1749605341462,11.79054348,163.85,163.8,44.64964886]
[1749605341666,11.79054348,163.84,163.8,56.44019234]
[1749605341873,11.79054348,163.87,163.82,11.79054348]
[1749605344249,5.64,163.89,163.82,11.79054348]
[1749605344654,11.79054348,163.88,163.8,44.64964886]
[1749605344845,5.64,163.89,163.83,11.79054348]
[1749605345045,5.64,163.89,163.86,11.79054348]
[1749605345247,17.43054348,163.89,163.84,11.79054348]
[1749605347664,11.79054348,163.88,163.83,11.79054348]
[1749605349372,5.64,163.89,163.84,11.79054348]
[1749605349755,17.43054348,163.89,163.84,11.79054348]
[1749605350358,5.64,163.89,163.84,11.79054348]
[1749605350875,17.43054348,163.89,163.84,11.79054348]
[1749605351775,5.64,163.89,163.85,11.79054348]
[1749605351956,5.64,163.89,163.86,11.79054348]
[1749605352159,5.64,163.89,163.86,18.64964886]
[1749605352372,5.64,163.89,163.88,11.79054348]
[1749605352553,5.64,163.89,163.85,1.5035]
[1749605352750,5.64,163.89,163.83,37.79054348]
[1749605352751,11.79054348,163.87,163.83,37.79054348]
[1749605353253,5.64,163.89,163.83,26.0]
[1749605353467,11.79054348,163.87,163.83,26.0]
[1749605353983,11.79054348,163.86,163.81,13.29404348]
[1749605354171,11.79054348,163.86,163.82,18.64964886]
[1749605354678,11.79054348,163.86,163.81,1.5035]
[1749605354887,10.18840154,163.89,163.79,30.44019234]
[1749605355057,11.79054348,163.84,163.79,44.64964886]
[1749605355252,11.79054348,163.85,163.8,11.79054348]
[1749605360985,5.64,163.89,163.83,11.79054348]
[1749605360986,11.79054348,163.88,163.83,11.79054348]
[1749605361481,17.43054348,163.89,163.84,11.79054348]
[1749605361691,5.64,163.89,163.85,11.79054348]
[1749605362489,5.64,163.89,163.83,26.0]
[1749605362490,17.43054348,163.89,163.84,30.44019234]
[1749605362784,11.79054348,163.88,163.84,30.44019234]
[1749605363387,5.64,163.89,163.84,30.44019234]
[1749605363579,11.79054348,163.88,163.84,30.44019234]
[1749605363777,5.64,163.89,163.84,30.44019234]
[1749605364090,17.43054348,163.89,163.84,30.44019234]
[1749605365080,11.79054348,163.88,163.84,30.44019234]
[1749605365289,11.79054348,163.87,163.83,115.9]
[1749605367173,11.79054348,163.86,163.83,115.9]
[1749605367487,11.79054348,163.86,163.83,89.9]
[1749605367973,11.79054348,163.85,163.83,89.9]
[1749605368178,11.79054348,163.85,163.81,30.44019234]
[1749605368874,5.64,163.88,163.82,11.79054348]
[1749605369091,11.79054348,163.86,163.81,30.44019234]
[1749605370977,5.64,163.88,163.83,11.79054348]
[1749605371172,17.43054348,163.88,163.83,11.79054348]
[1749605372701,5.64,163.88,163.84,18.64964886]
[1749605372901,5.64,163.88,163.84,30.44019234]
[1749605373306,5.64,163.88,163.86,11.79054348]
[1749605376088,5.64,163.88,163.87,11.79054348]
[1749605376784,5.64,163.88,163.84,108.54964886]
[1749605376989,5.64,163.88,163.86,18.64964886]
[1749605377785,5.64,163.88,163.85,30.44019234]
[1749605378004,5.64,163.88,163.85,18.64964886]
[1749605378208,5.64,163.88,163.85,30.44019234]
[1749605378701,5.64,163.88,163.85,18.64964886]
[1749605379290,5.64,163.88,163.85,30.44019234]
[1749605379488,5.64,163.88,163.86,26.0]
[1749605379707,11.79054348,163.87,163.82,25.4]
[1749605379916,11.79054348,163.87,163.83,18.64964886]
[1749605380207,5.64,163.88,163.82,37.19054348]
[1749605380208,17.43054348,163.88,163.84,11.79054348]
[1749605380695,17.43054348,163.88,163.83,11.79054348]
[1749605381996,11.79054348,163.86,163.82,18.64964886]
[1749605382291,11.79054348,163.85,163.82,18.64964886]
[1749605382494,11.79054348,163.83,163.8,26.0]
[1749605382695,11.79054348,163.82,163.76,44.02964886]
[1749605382895,11.79054348,163.82,163.78,30.44019234]
[1749605385605,11.79054348,163.82,163.78,18.64964886]
[1749605386704,11.79054348,163.82,163.78,30.44019234]
[1749605387819,11.79054348,163.82,163.78,18.64964886]
[1749605388022,11.79054348,163.82,163.78,30.44019234]
[1749605388319,11.79054348,163.82,163.78,18.64964886]
[1749605388616,11.79054348,163.81,163.77,127.69054348]
[1749605389124,11.79054348,163.81,163.77,115.9]
[1749605389302,11.79054348,163.81,163.77,127.69054348]
[1749605390119,11.79054348,163.82,163.77,127.69054348]
[1749605390293,11.79054348,163.81,163.77,115.9]
[1749605390497,11.79054348,163.8,163.76,18.64964886]
[1749605390848,11.79054348,163.84,163.76,18.64964886]
[1749605391002,11.79054348,163.8,163.76,30.44019234]
[1749605391399,11.79054348,163.81,163.76,30.44019234]
[1749605393316,11.79054348,163.8,163.76,18.64964886]
[1749605394211,11.79054348,163.82,163.78,11.79054348]
[1749605396037,11.79054348,163.82,163.76,18.64964886]
[1749605396326,11.79054348,163.81,163.74,26.0]
[1749605396501,18.79181043,163.86,163.75,11.79054348]
[1749605396502,11.79054348,163.8,163.75,11.79054348]
[1749605396702,11.79054348,163.81,163.76,11.79054348]
[1749605397198,23.33259556,163.86,163.76,11.79054348]
[1749605397403,11.79054348,163.81,163.76,11.79054348]
[1749605399022,11.79054348,163.8,163.75,11.79054348]
[1749605399519,11.79054348,163.81,163.76,11.79054348]
[1749605399923,11.79054348,163.78,163.73,89.9]
[1749605400548,11.79054348,163.74,163.65,1.576]
[1749605400703,11.79054348,163.68,163.63,11.79054348]
[1749605400906,11.79054348,163.66,163.61,11.79054348]
[1749605401435,5.62,163.68,163.62,11.79054348]
[1749605401436,11.79054348,163.67,163.62,11.79054348]
[1749605401819,11.79054348,163.63,163.55,8.0323]